[Event "Early-Titled-Tuesday-Blitz-April-16-2024"]
[Site "Chess.com"]
[Date "2024.04.16"]
[Round "7"]
[White "Anton_Demchenko"]
[Black "Gabrielian_Artur"]
[Result "0-1"]
[WhiteElo "3002"]
[BlackElo "2809"]
[TimeControl "180+1"]
[EndTime "9:21:32 PDT"]
[Termination "Gabrielian_Artur won by checkmate"]

1. Nf3 {[%clk 0:03:00.9]} 1... d5 {[%clk 0:02:59]} 2. b3 {[%clk 0:03:01]} 2...
Nf6 {[%clk 0:02:55.8]} 3. Bb2 {[%clk 0:03:01.3]} 3... e6 {[%clk 0:02:55.7]} 4.
g3 {[%clk 0:02:49.8]} 4... Be7 {[%clk 0:02:53.3]} 5. Bg2 {[%clk 0:02:50.3]} 5...
O-O {[%clk 0:02:53.5]} 6. O-O {[%clk 0:02:51.1]} 6... b6 {[%clk 0:02:53.6]} 7.
d3 {[%clk 0:02:51.2]} 7... Bb7 {[%clk 0:02:52]} 8. Nbd2 {[%clk 0:02:51.3]} 8...
c5 {[%clk 0:02:47.8]} 9. Re1 {[%clk 0:02:41.8]} 9... Nc6 {[%clk 0:02:42.8]} 10.
Ne5 {[%clk 0:02:41.6]} 10... Nxe5 {[%clk 0:02:41.7]} 11. Bxe5 {[%clk 0:02:42.5]}
11... Nd7 {[%clk 0:02:41.6]} 12. Bb2 {[%clk 0:02:43.2]} 12... Bf6 {[%clk
0:02:41.2]} 13. Qc1 {[%clk 0:02:41.9]} 13... Bxb2 {[%clk 0:02:38.6]} 14. Qxb2
{[%clk 0:02:42.4]} 14... Rb8 {[%clk 0:02:36.2]} 15. c4 {[%clk 0:02:34.2]} 15...
d4 {[%clk 0:02:34.5]} 16. Bxb7 {[%clk 0:02:28.5]} 16... Rxb7 {[%clk 0:02:34.6]}
17. b4 {[%clk 0:02:29.4]} 17... e5 {[%clk 0:02:29.8]} 18. bxc5 {[%clk
0:02:16.3]} 18... Nxc5 {[%clk 0:02:29.6]} 19. a4 {[%clk 0:02:17.1]} 19... f5
{[%clk 0:02:24.2]} 20. Nb3 {[%clk 0:02:09.3]} 20... Qe7 {[%clk 0:02:20.5]} 21.
Reb1 {[%clk 0:02:03.2]} 21... Ne6 {[%clk 0:01:55.4]} 22. Qa3 {[%clk 0:01:57]}
22... Qc7 {[%clk 0:01:36.7]} 23. a5 {[%clk 0:01:52.9]} 23... e4 {[%clk
0:01:31.7]} 24. axb6 {[%clk 0:01:47.3]} 24... axb6 {[%clk 0:01:30.1]} 25. Qb4
{[%clk 0:01:42.9]} 25... exd3 {[%clk 0:01:27.5]} 26. exd3 {[%clk 0:01:42.9]}
26... f4 {[%clk 0:01:28.1]} 27. Qb5 {[%clk 0:01:39]} 27... Qf7 {[%clk
0:01:16.7]} 28. Rf1 {[%clk 0:01:25]} 28... h6 {[%clk 0:01:14.1]} 29. Rae1 {[%clk
0:00:51.2]} 29... Ng5 {[%clk 0:01:06.2]} 30. Kg2 {[%clk 0:00:51.4]} 30... Qh5
{[%clk 0:00:45.3]} 31. Qd5+ {[%clk 0:00:46.3]} 31... Rbf7 {[%clk 0:00:42.5]} 32.
h4 {[%clk 0:00:46.8]} 32... f3+ {[%clk 0:00:29.2]} 33. Kh2 {[%clk 0:00:47]}
33... Kh8 {[%clk 0:00:29]} 34. Nxd4 {[%clk 0:00:38.9]} 34... Rf4 {[%clk
0:00:29]} 35. Re4 {[%clk 0:00:15.5]} 35... Qg4 {[%clk 0:00:11.4]} 36. hxg5
{[%clk 0:00:15.3]} 36... Qh5+ {[%clk 0:00:06.8]} 37. Kg1 {[%clk 0:00:13.7]}
37... Qh3 {[%clk 0:00:07]} 38. Nxf3 {[%clk 0:00:14.3]} 38... Rxf3 {[%clk
0:00:07.6]} 39. Ree1 {[%clk 0:00:03.8]} 39... h5 {[%clk 0:00:08]} 40. Qe4 {[%clk
0:00:03.8]} 40... R8f4 {[%clk 0:00:06.6]} 41. gxf4 {[%clk 0:00:02.2]} 41... Qg4+
{[%clk 0:00:06.5]} 42. Kh2 {[%clk 0:00:02.7]} 42... Rh3# {[%clk 0:00:06.8]} 0-1

[Event "Early-Titled-Tuesday-Blitz-April-16-2024"]
[Site "Chess.com"]
[Date "2024.04.16"]
[Round "7"]
[White "BenchGM"]
[Black "ATM622"]
[Result "1-0"]
[WhiteElo "2327"]
[BlackElo "2436"]
[TimeControl "180+1"]
[EndTime "9:21:32 PDT"]
[Termination "BenchGM won on time"]

1. e4 {[%clk 0:03:00]} 1... c6 {[%clk 0:02:59.9]} 2. d4 {[%clk 0:02:59.8]} 2...
d5 {[%clk 0:03:00.4]} 3. e5 {[%clk 0:03:00.2]} 3... Bf5 {[%clk 0:02:59.8]} 4. h4
{[%clk 0:03:00.1]} 4... h5 {[%clk 0:02:59.4]} 5. Bd3 {[%clk 0:03:00.1]} 5...
Bxd3 {[%clk 0:02:58.9]} 6. Qxd3 {[%clk 0:03:00.6]} 6... e6 {[%clk 0:02:59]} 7.
Nf3 {[%clk 0:02:58.9]} 7... Ne7 {[%clk 0:02:58.1]} 8. Bg5 {[%clk 0:02:49.1]}
8... Qb6 {[%clk 0:02:56.2]} 9. Nbd2 {[%clk 0:02:43.6]} 9... Na6 {[%clk
0:02:52.9]} 10. c4 {[%clk 0:02:31.5]} 10... dxc4 {[%clk 0:02:34.5]} 11. Nxc4
{[%clk 0:02:27.8]} 11... Nb4 {[%clk 0:02:11.1]} 12. Qb3 {[%clk 0:02:20.6]} 12...
Qa6 {[%clk 0:01:18.7]} 13. Nd6+ {[%clk 0:02:13.3]} 13... Kd7 {[%clk 0:01:18.3]}
14. Qxb4 {[%clk 0:02:12.6]} 14... Nd5 {[%clk 0:01:15.9]} 15. Qxb7+ {[%clk
0:01:47.3]} 15... Qxb7 {[%clk 0:01:11.7]} 16. Nxb7 {[%clk 0:01:46.9]} 16... f6
{[%clk 0:01:04.6]} 17. Bd2 {[%clk 0:01:36.4]} 17... Rb8 {[%clk 0:00:59.8]} 18.
Nc5+ {[%clk 0:01:24]} 18... Bxc5 {[%clk 0:00:58.8]} 19. dxc5 {[%clk 0:01:24]}
19... Rxb2 {[%clk 0:00:59.1]} 20. O-O {[%clk 0:01:15]} 20... Rhb8 {[%clk
0:00:58.6]} 21. Rfd1 {[%clk 0:00:50.8]} 21... R8b5 {[%clk 0:00:44.1]} 22. Be3
{[%clk 0:00:50]} 22... Ke7 {[%clk 0:00:39.8]} 23. Bd4 {[%clk 0:00:49.9]} 23...
Rc2 {[%clk 0:00:36.9]} 24. a4 {[%clk 0:00:41.9]} 24... Rb4 {[%clk 0:00:22.4]}
25. Rdb1 {[%clk 0:00:37.8]} 25... a5 {[%clk 0:00:22.2]} 26. Rxb4 {[%clk
0:00:37.3]} 26... Nxb4 {[%clk 0:00:21.8]} 27. Be3 {[%clk 0:00:27.5]} 27... Rc3
{[%clk 0:00:19.7]} 28. exf6+ {[%clk 0:00:24.4]} 28... gxf6 {[%clk 0:00:19.3]}
29. Nd4 {[%clk 0:00:24.6]} 29... Rc4 {[%clk 0:00:18.1]} 30. Nb3 {[%clk
0:00:23.8]} 30... Rc3 {[%clk 0:00:13.5]} 31. Nxa5 {[%clk 0:00:23.1]} 31... Nc2
{[%clk 0:00:12.9]} 32. Rb1 {[%clk 0:00:22.4]} 32... Nxe3 {[%clk 0:00:11.9]} 33.
fxe3 {[%clk 0:00:21.8]} 33... Rxc5 {[%clk 0:00:12.3]} 34. Rb7+ {[%clk
0:00:21.3]} 34... Kd6 {[%clk 0:00:11.7]} 35. Nb3 {[%clk 0:00:21.5]} 35... Rc3
{[%clk 0:00:11.1]} 36. a5 {[%clk 0:00:21.8]} 36... Rc2 {[%clk 0:00:07.6]} 37. a6
{[%clk 0:00:19.5]} 37... Ra2 {[%clk 0:00:07.9]} 38. a7 {[%clk 0:00:19.7]} 38...
Kd5 {[%clk 0:00:07.9]} 39. Rb4 {[%clk 0:00:13.1]} 39... c5 {[%clk 0:00:08]} 40.
Rb5 {[%clk 0:00:13.3]} 40... Kc4 {[%clk 0:00:07.7]} 41. Ra5 {[%clk 0:00:13.1]}
1-0

[Event "Early-Titled-Tuesday-Blitz-April-16-2024"]
[Site "Chess.com"]
[Date "2024.04.16"]
[Round "7"]
[White "GMCarbone"]
[Black "Gryffindorac8"]
[Result "0-1"]
[WhiteElo "2573"]
[BlackElo "2453"]
[TimeControl "180+1"]
[EndTime "9:21:33 PDT"]
[Termination "Gryffindorac8 won on time"]

1. d4 {[%clk 0:03:00.9]} 1... Nf6 {[%clk 0:02:57.9]} 2. c4 {[%clk 0:02:58.9]}
2... c5 {[%clk 0:02:57.5]} 3. d5 {[%clk 0:02:58.8]} 3... b5 {[%clk 0:02:57.5]}
4. cxb5 {[%clk 0:02:59.7]} 4... a6 {[%clk 0:02:57.8]} 5. e3 {[%clk 0:02:59.9]}
5... axb5 {[%clk 0:02:56.9]} 6. Bxb5 {[%clk 0:03:00.8]} 6... Qa5+ {[%clk
0:02:56.9]} 7. Nc3 {[%clk 0:03:00.2]} 7... Bb7 {[%clk 0:02:57.3]} 8. Bd2 {[%clk
0:03:00.7]} 8... Qb6 {[%clk 0:02:57.6]} 9. Nf3 {[%clk 0:02:58.9]} 9... Nxd5
{[%clk 0:02:56.1]} 10. a4 {[%clk 0:02:59.1]} 10... Nb4 {[%clk 0:02:51.7]} 11.
O-O {[%clk 0:02:50.9]} 11... e6 {[%clk 0:02:51.3]} 12. e4 {[%clk 0:02:51.1]}
12... Be7 {[%clk 0:02:49]} 13. Bf4 {[%clk 0:02:51]} 13... O-O {[%clk 0:02:44.9]}
14. Ne5 {[%clk 0:02:22.8]} 14... d5 {[%clk 0:02:32.6]} 15. exd5 {[%clk
0:02:23.7]} 15... exd5 {[%clk 0:02:32.4]} 16. Re1 {[%clk 0:02:21.8]} 16... Bf6
{[%clk 0:02:26]} 17. Ng4 {[%clk 0:01:59.3]} 17... Bd4 {[%clk 0:02:24.5]} 18. Qf3
{[%clk 0:01:44.3]} 18... Nc2 {[%clk 0:02:05.4]} 19. Qg3 {[%clk 0:00:48.9]} 19...
Nxa1 {[%clk 0:01:59.9]} 20. Nh6+ {[%clk 0:00:46]} 20... Kh8 {[%clk 0:01:48.9]}
21. Nxf7+ {[%clk 0:00:46.2]} 21... Kg8 {[%clk 0:01:49.2]} 22. Bd6 {[%clk
0:00:43.3]} 22... Na6 {[%clk 0:01:31.3]} 23. Nh6+ {[%clk 0:00:33.1]} 23... Kh8
{[%clk 0:01:28.3]} 24. Bxf8 {[%clk 0:00:33.1]} 24... Rxf8 {[%clk 0:01:03.8]} 25.
Qf3 {[%clk 0:00:28.8]} 25... Qf6 {[%clk 0:00:47.2]} 26. Nf7+ {[%clk 0:00:28.4]}
26... Kg8 {[%clk 0:00:44.2]} 27. Qxf6 {[%clk 0:00:28.6]} 27... Bxf6 {[%clk
0:00:44]} 28. Nd6 {[%clk 0:00:28]} 28... Nc2 {[%clk 0:00:40.2]} 29. Rd1 {[%clk
0:00:28.2]} 29... d4 {[%clk 0:00:35.4]} 30. Nxb7 {[%clk 0:00:26.9]} 30... dxc3
{[%clk 0:00:34.5]} 31. Bc4+ {[%clk 0:00:19.4]} 31... Kh8 {[%clk 0:00:33.4]} 32.
bxc3 {[%clk 0:00:20.3]} 32... Nc7 {[%clk 0:00:30.6]} 33. Nxc5 {[%clk 0:00:18.3]}
33... h6 {[%clk 0:00:28.9]} 34. Ne4 {[%clk 0:00:15.6]} 34... Be5 {[%clk
0:00:20.2]} 35. Bd3 {[%clk 0:00:13.3]} 35... Na3 {[%clk 0:00:18.2]} 36. Ra1
{[%clk 0:00:13.9]} 36... Nd5 {[%clk 0:00:14.3]} 37. Rxa3 {[%clk 0:00:09.9]}
37... Rc8 {[%clk 0:00:14.3]} 38. a5 {[%clk 0:00:07.8]} 38... Nxc3 {[%clk
0:00:12.3]} 39. Nxc3 {[%clk 0:00:05.4]} 39... Bxc3 {[%clk 0:00:12.4]} 40. g3
{[%clk 0:00:02.1]} 40... Bd4 {[%clk 0:00:11.1]} 41. a6 {[%clk 0:00:02.2]} 41...
Ra8 {[%clk 0:00:08.6]} 42. Kg2 {[%clk 0:00:02.3]} 42... Ra7 {[%clk 0:00:07.6]}
43. Ra4 {[%clk 0:00:02.4]} 43... Bf6 {[%clk 0:00:07.6]} 44. f4 {[%clk
0:00:02.6]} 44... g5 {[%clk 0:00:07.5]} 0-1

[Event "Early-Titled-Tuesday-Blitz-April-16-2024"]
[Site "Chess.com"]
[Date "2024.04.16"]
[Round "7"]
[White "VerdeNotte"]
[Black "VinzentSpitzl"]
[Result "1-0"]
[WhiteElo "2881"]
[BlackElo "2480"]
[TimeControl "180+1"]
[EndTime "9:21:35 PDT"]
[Termination "VerdeNotte won by resignation"]

1. e4 {[%clk 0:03:00.9]} 1... d5 {[%clk 0:02:58.3]} 2. exd5 {[%clk 0:03:00.7]}
2... Qxd5 {[%clk 0:02:59.2]} 3. Nf3 {[%clk 0:02:59.4]} 3... Nf6 {[%clk
0:02:58.2]} 4. c4 {[%clk 0:02:57.8]} 4... Qd8 {[%clk 0:02:54.3]} 5. d4 {[%clk
0:02:57.6]} 5... g6 {[%clk 0:02:54.9]} 6. Nc3 {[%clk 0:02:56.8]} 6... Bg7 {[%clk
0:02:55.4]} 7. h3 {[%clk 0:02:57.1]} 7... c6 {[%clk 0:02:49.6]} 8. Bd3 {[%clk
0:02:54.2]} 8... O-O {[%clk 0:02:48.2]} 9. O-O {[%clk 0:02:53.9]} 9... Nbd7
{[%clk 0:02:40.8]} 10. Re1 {[%clk 0:02:53.8]} 10... Re8 {[%clk 0:02:40.4]} 11.
Bf4 {[%clk 0:02:52.2]} 11... Qa5 {[%clk 0:02:35.2]} 12. Qd2 {[%clk 0:02:46.3]}
12... b5 {[%clk 0:02:17]} 13. cxb5 {[%clk 0:02:38.4]} 13... cxb5 {[%clk
0:02:16.2]} 14. Nxb5 {[%clk 0:02:37.7]} 14... Qxd2 {[%clk 0:02:12.8]} 15. Bxd2
{[%clk 0:02:38.6]} 15... Nd5 {[%clk 0:02:12]} 16. Nd6 {[%clk 0:02:22.8]} 16...
Rd8 {[%clk 0:02:03]} 17. Ba5 {[%clk 0:02:13.8]} 17... N7b6 {[%clk 0:02:02.8]}
18. Nxc8 {[%clk 0:02:03.5]} 18... Raxc8 {[%clk 0:02:02.5]} 19. Rac1 {[%clk
0:01:57.7]} 19... e6 {[%clk 0:01:50.2]} 20. Ba6 {[%clk 0:01:54.4]} 20... Rxc1
{[%clk 0:01:48.9]} 21. Rxc1 {[%clk 0:01:55.3]} 21... h6 {[%clk 0:01:41.2]} 22.
g3 {[%clk 0:01:51.6]} 22... g5 {[%clk 0:01:36.1]} 23. Ne5 {[%clk 0:01:47.8]}
23... Kf8 {[%clk 0:01:21.1]} 24. Bb7 {[%clk 0:01:32]} 24... Bf6 {[%clk
0:01:17.9]} 25. Kf1 {[%clk 0:01:18.5]} 25... Kg7 {[%clk 0:01:16.7]} 26. Ke2
{[%clk 0:01:12.7]} 26... h5 {[%clk 0:01:16.4]} 27. Rc5 {[%clk 0:00:53.6]} 27...
h4 {[%clk 0:01:14.8]} 28. Bxd5 {[%clk 0:00:49.6]} 28... exd5 {[%clk 0:01:08.9]}
29. gxh4 {[%clk 0:00:44.8]} 29... gxh4 {[%clk 0:01:03.5]} 30. Rc7 {[%clk
0:00:37.7]} 30... Bxe5 {[%clk 0:00:59.4]} 31. dxe5 {[%clk 0:00:38.6]} 31... Re8
{[%clk 0:00:58.8]} 32. Rxa7 {[%clk 0:00:36.1]} 32... Rxe5+ {[%clk 0:00:55.2]}
33. Kd3 {[%clk 0:00:32.7]} 33... Re6 {[%clk 0:00:53.3]} 34. Ra6 {[%clk
0:00:27.1]} 34... Nc4 {[%clk 0:00:51]} 35. Bc3+ {[%clk 0:00:19.4]} 35... Kg6
{[%clk 0:00:43]} 36. Rxe6+ {[%clk 0:00:18.9]} 36... fxe6 {[%clk 0:00:43.4]} 37.
b3 {[%clk 0:00:19.3]} 37... Nd6 {[%clk 0:00:42.4]} 38. a4 {[%clk 0:00:19.2]}
38... Kf5 {[%clk 0:00:42.1]} 39. Kd4 {[%clk 0:00:15.9]} 39... Kf4 {[%clk
0:00:36.8]} 40. Bb4 {[%clk 0:00:13.7]} 40... Nf5+ {[%clk 0:00:35.4]} 41. Kd3
{[%clk 0:00:13.7]} 41... e5 {[%clk 0:00:34.4]} 42. a5 {[%clk 0:00:13]} 42... Kf3
{[%clk 0:00:33.7]} 43. a6 {[%clk 0:00:13]} 43... e4+ {[%clk 0:00:34]} 44. Kd2
{[%clk 0:00:11.3]} 44... Kxf2 {[%clk 0:00:32.3]} 45. a7 {[%clk 0:00:11.5]} 45...
e3+ {[%clk 0:00:32.4]} 46. Kd3 {[%clk 0:00:11.4]} 46... e2 {[%clk 0:00:27]} 47.
a8=Q {[%clk 0:00:11.4]} 47... Ng3 {[%clk 0:00:23.8]} 48. Qxd5 {[%clk 0:00:08.2]}
48... Kg1 {[%clk 0:00:22.4]} 49. Qd4+ {[%clk 0:00:08]} 49... Kh2 {[%clk
0:00:22.5]} 50. Qxh4 {[%clk 0:00:08.6]} 50... Nf5 {[%clk 0:00:13.8]} 51. Qf2+
{[%clk 0:00:08]} 51... Kh1 {[%clk 0:00:12.7]} 52. Qxf5 {[%clk 0:00:07.7]} 1-0

[Event "Early-Titled-Tuesday-Blitz-April-16-2024"]
[Site "Chess.com"]
[Date "2024.04.16"]
[Round "7"]
[White "NikFil2013"]
[Black "Kostukov_Alex"]
[Result "1-0"]
[WhiteElo "2422"]
[BlackElo "2276"]
[TimeControl "180+1"]
[EndTime "9:21:35 PDT"]
[Termination "NikFil2013 won on time"]

1. d4 {[%clk 0:03:00.9]} 1... g6 {[%clk 0:02:59.7]} 2. c4 {[%clk 0:03:01.5]}
2... Bg7 {[%clk 0:02:59.9]} 3. Nc3 {[%clk 0:03:02.2]} 3... d6 {[%clk 0:03:00.5]}
4. e4 {[%clk 0:03:02.4]} 4... e5 {[%clk 0:03:01]} 5. Nf3 {[%clk 0:03:01.8]} 5...
exd4 {[%clk 0:03:01.4]} 6. Nxd4 {[%clk 0:03:02.7]} 6... Nc6 {[%clk 0:03:02]} 7.
Be3 {[%clk 0:02:58.7]} 7... Nge7 {[%clk 0:03:02]} 8. Be2 {[%clk 0:02:58.1]} 8...
O-O {[%clk 0:03:02.3]} 9. O-O {[%clk 0:02:58]} 9... f5 {[%clk 0:03:02.6]} 10.
Nxc6 {[%clk 0:02:54.2]} 10... bxc6 {[%clk 0:03:02]} 11. exf5 {[%clk 0:02:52]}
11... Nxf5 {[%clk 0:03:01.1]} 12. Bf3 {[%clk 0:02:45.6]} 12... Nxe3 {[%clk
0:02:44.2]} 13. fxe3 {[%clk 0:02:46.5]} 13... Bd7 {[%clk 0:02:41.4]} 14. Qd2
{[%clk 0:02:37.9]} 14... Qh4 {[%clk 0:02:35.2]} 15. Rac1 {[%clk 0:02:31.1]}
15... Rae8 {[%clk 0:02:33.6]} 16. b3 {[%clk 0:02:26.1]} 16... Bh6 {[%clk
0:02:25.8]} 17. Rce1 {[%clk 0:02:20]} 17... Re7 {[%clk 0:02:20.6]} 18. Qd3
{[%clk 0:02:05.2]} 18... Rfe8 {[%clk 0:02:15.7]} 19. e4 {[%clk 0:02:01.9]} 19...
Bf4 {[%clk 0:02:01.2]} 20. h3 {[%clk 0:01:55.4]} 20... Qg3 {[%clk 0:01:56.4]}
21. Ne2 {[%clk 0:01:51.3]} 21... Qh2+ {[%clk 0:01:49.1]} 22. Kf2 {[%clk
0:01:51]} 22... Bg5 {[%clk 0:01:33.4]} 23. Rh1 {[%clk 0:01:17.1]} 23... Bh4+
{[%clk 0:01:32.4]} 24. Ke3 {[%clk 0:01:17.3]} 24... Qe5 {[%clk 0:01:28.8]} 25.
Rd1 {[%clk 0:01:16.3]} 25... Qg5+ {[%clk 0:01:13.2]} 26. Kd4 {[%clk 0:01:09.1]}
26... Qa5 {[%clk 0:00:42.1]} 27. Qd2 {[%clk 0:00:52.7]} 27... Bf2+ {[%clk
0:00:28.4]} 28. Kd3 {[%clk 0:00:49.1]} 28... Qc5 {[%clk 0:00:23]} 29. Kc2 {[%clk
0:00:40.8]} 29... d5 {[%clk 0:00:23.2]} 30. exd5 {[%clk 0:00:37.9]} 30... Bf5+
{[%clk 0:00:23.1]} 31. Kb2 {[%clk 0:00:37.4]} 31... Re3 {[%clk 0:00:16.2]} 32.
dxc6 {[%clk 0:00:29.8]} 32... Bh4 {[%clk 0:00:15]} 33. Qd5+ {[%clk 0:00:27.9]}
33... Qxd5 {[%clk 0:00:15.2]} 34. Bxd5+ {[%clk 0:00:13.7]} 34... Kg7 {[%clk
0:00:14.7]} 35. Nd4 {[%clk 0:00:11.4]} 35... Bf6 {[%clk 0:00:13.2]} 36. Ka3
{[%clk 0:00:11.6]} 36... Bd3 {[%clk 0:00:09.2]} 37. Ne6+ {[%clk 0:00:10]} 37...
Kh6 {[%clk 0:00:06.8]} 38. Nxc7 {[%clk 0:00:10.1]} 38... Rc8 {[%clk 0:00:03.4]}
39. Nb5 {[%clk 0:00:10]} 39... Be7+ {[%clk 0:00:02.3]} 40. Kb2 {[%clk
0:00:08.9]} 40... Bf6+ {[%clk 0:00:02.9]} 41. Ka3 {[%clk 0:00:09]} 41... Be7+
{[%clk 0:00:02.7]} 42. Ka4 {[%clk 0:00:09.6]} 42... Bc5 {[%clk 0:00:02.2]} 43.
c7 {[%clk 0:00:08.7]} 43... Re2 {[%clk 0:00:02.1]} 44. a3 {[%clk 0:00:06]} 44...
Ra2 {[%clk 0:00:01.1]} 45. Rxd3 {[%clk 0:00:05.4]} 1-0

[Event "Early-Titled-Tuesday-Blitz-April-16-2024"]
[Site "Chess.com"]
[Date "2024.04.16"]
[Round "7"]
[White "InitiatingASC"]
[Black "flawian2008"]
[Result "0-1"]
[WhiteElo "2365"]
[BlackElo "2557"]
[TimeControl "180+1"]
[EndTime "9:21:37 PDT"]
[Termination "flawian2008 won by resignation"]

1. d4 {[%clk 0:02:48.6]} 1... Nf6 {[%clk 0:02:59.8]} 2. c4 {[%clk 0:02:47.8]}
2... c5 {[%clk 0:02:59.8]} 3. e3 {[%clk 0:02:45.7]} 3... cxd4 {[%clk 0:02:57.4]}
4. exd4 {[%clk 0:02:45.1]} 4... g6 {[%clk 0:02:57.8]} 5. Nf3 {[%clk 0:02:42]}
5... Bg7 {[%clk 0:02:58.1]} 6. h4 {[%clk 0:02:40.1]} 6... d5 {[%clk 0:02:56.4]}
7. Nc3 {[%clk 0:02:38.1]} 7... Bg4 {[%clk 0:02:54.5]} 8. c5 {[%clk 0:02:35.5]}
8... O-O {[%clk 0:02:53.2]} 9. Be3 {[%clk 0:02:32.9]} 9... Nc6 {[%clk
0:02:52.9]} 10. Be2 {[%clk 0:02:31.6]} 10... Ne4 {[%clk 0:02:44.8]} 11. Nd2
{[%clk 0:02:20.3]} 11... Bxe2 {[%clk 0:02:33.2]} 12. Nxe2 {[%clk 0:02:19.9]}
12... e5 {[%clk 0:02:28.4]} 13. Nxe4 {[%clk 0:02:17.1]} 13... dxe4 {[%clk
0:02:26.1]} 14. d5 {[%clk 0:02:17.3]} 14... Nb4 {[%clk 0:02:20.4]} 15. d6 {[%clk
0:02:10.4]} 15... Nd3+ {[%clk 0:02:20.8]} 16. Kf1 {[%clk 0:02:10.7]} 16... f5
{[%clk 0:02:21.6]} 17. Bg5 {[%clk 0:02:07.3]} 17... Qd7 {[%clk 0:02:17.1]} 18.
b4 {[%clk 0:02:02]} 18... h6 {[%clk 0:02:12.6]} 19. Bd2 {[%clk 0:02:01.7]} 19...
f4 {[%clk 0:02:10.5]} 20. Nc3 {[%clk 0:01:57.3]} 20... e3 {[%clk 0:02:06.7]} 21.
Be1 {[%clk 0:01:52.8]} 21... e4 {[%clk 0:01:50.7]} 22. Nxe4 {[%clk 0:01:49.4]}
22... Nxe1 {[%clk 0:01:48.7]} 23. Qd5+ {[%clk 0:01:44.4]} 23... Kh8 {[%clk
0:01:28.3]} 24. Rxe1 {[%clk 0:01:43.1]} 24... Rae8 {[%clk 0:01:27.4]} 25. Ng5
{[%clk 0:01:32.4]} 25... Re5 {[%clk 0:01:01.8]} 26. Qc4 {[%clk 0:01:31.5]} 26...
b5 {[%clk 0:00:53.8]} 27. Qb3 {[%clk 0:01:26.9]} 27... a5 {[%clk 0:00:49.5]} 28.
a3 {[%clk 0:01:25.5]} 28... axb4 {[%clk 0:00:26.2]} 29. axb4 {[%clk 0:01:25]}
29... exf2 {[%clk 0:00:21.6]} 30. Kxf2 {[%clk 0:01:22.6]} 30... Rxe1 {[%clk
0:00:16.2]} 31. Kxe1 {[%clk 0:01:14.9]} 31... Re8+ {[%clk 0:00:13.9]} 32. Kd2
{[%clk 0:01:08.7]} 32... Qg4 {[%clk 0:00:09.5]} 33. Qf3 {[%clk 0:00:49.2]} 33...
Qf5 {[%clk 0:00:05.8]} 34. Qd3 {[%clk 0:00:40.1]} 34... Qg4 {[%clk 0:00:03.7]}
35. Qf3 {[%clk 0:00:17.6]} 35... Qf5 {[%clk 0:00:04.2]} 36. Qd3 {[%clk
0:00:16.4]} 36... Qe5 {[%clk 0:00:04.8]} 37. Nf3 {[%clk 0:00:11.9]} 37... Qb2+
{[%clk 0:00:04.7]} 38. Qc2 {[%clk 0:00:12.5]} 38... Re2+ {[%clk 0:00:05.1]} 39.
Kxe2 {[%clk 0:00:12.2]} 39... Qxc2+ {[%clk 0:00:05.8]} 40. Kf1 {[%clk
0:00:11.3]} 40... Qb1+ {[%clk 0:00:05.2]} 41. Ne1 {[%clk 0:00:11.5]} 41... Qxb4
{[%clk 0:00:05.5]} 42. d7 {[%clk 0:00:11.1]} 42... Bf6 {[%clk 0:00:06.2]} 43. c6
{[%clk 0:00:11.2]} 43... Qc4+ {[%clk 0:00:06.9]} 44. Kf2 {[%clk 0:00:10.7]}
44... Qxc6 {[%clk 0:00:07.7]} 45. Nf3 {[%clk 0:00:11.2]} 45... Qxd7 {[%clk
0:00:08.1]} 46. Re1 {[%clk 0:00:11.6]} 46... Qa7+ {[%clk 0:00:07.5]} 47. Kf1
{[%clk 0:00:11.7]} 47... b4 {[%clk 0:00:08.2]} 48. Re8+ {[%clk 0:00:11.8]} 48...
Kg7 {[%clk 0:00:08.8]} 49. h5 {[%clk 0:00:11.5]} 49... b3 {[%clk 0:00:09]} 50.
hxg6 {[%clk 0:00:10.7]} 50... b2 {[%clk 0:00:09.6]} 51. Re1 {[%clk 0:00:11.2]}
51... Qa1 {[%clk 0:00:08.7]} 52. Nd2 {[%clk 0:00:09.2]} 52... Bc3 {[%clk
0:00:08.2]} 0-1